bitfinex-derivatives/quotes_SOLF0:USTF0_20250215
["timestamp","ask_amount","ask_price","bid_price","bid_amount"]
[1739594321589,5.0584,197.66,197.62,7.92829236]
[1739594322284,5.09330391,197.67,197.62,7.92829236]
[1739594322695,0.03510391,197.67,197.64,7.92829236]
[1739594328598,0.03510391,197.67,197.66,7.92829236]
[1739594335300,1.5035,197.77,197.71,7.92829236]
[1739594335700,5.0563,197.75,197.71,7.92829236]
[1739594336308,5.09305328,197.75,197.71,7.96285212]
[1739594337805,0.03675328,197.75,197.71,7.96285212]
[1739594338402,5.09305328,197.75,197.71,7.96285212]
[1739594339011,0.03675328,197.75,197.71,7.96285212]
[1739594339605,0.03675328,197.75,197.73,7.92829236]
[1739594343104,0.03675328,197.75,197.71,7.96285212]
[1739594343310,0.03675328,197.75,197.71,0.03455976]
[1739594344014,5.0564,197.74,197.71,0.03455976]
[1739594346415,5.0569,197.72,197.71,0.03455976]
[1739594349314,5.058,197.68,197.63,7.92829236]
[1739594350411,0.0346952,197.67,197.63,7.92829236]
[1739594352218,5.0928952,197.67,197.63,7.92829236]
[1739594352413,5.0928952,197.67,197.61,7.92829236]
[1739594352619,0.0346952,197.67,197.61,7.92829236]
[1739594352816,5.0585,197.66,197.61,7.92829236]
[1739594353817,0.0346952,197.67,197.61,7.92829236]
[1739594354412,5.0587,197.65,197.61,7.92829236]
[1739594355420,5.0589,197.64,197.61,7.92829236]
[1739594356221,5.0587,197.65,197.61,7.92829236]
[1739594356424,0.0346952,197.67,197.61,7.92829236]
[1739594359024,5.0587,197.65,197.61,7.92829236]
[1739594362528,0.0346952,197.67,197.61,7.92829236]
[1739594362726,5.059,197.64,197.61,7.92829236]
[1739594369529,5.0586,197.65,197.61,7.92829236]
[1739594369730,0.0346952,197.67,197.61,7.92829236]
[1739594370127,5.0588,197.65,197.61,7.92829236]
[1739594370727,0.0346952,197.67,197.61,7.92829236]
[1739594372033,5.0591,197.64,197.61,7.92829236]
[1739594374633,5.0592,197.63,197.61,7.92829236]
[1739594375443,0.0346952,197.67,197.61,7.92829236]
[1739594377040,5.059,197.64,197.61,7.92829236]
[1739594378443,5.0586,197.66,197.61,7.92829236]
[1739594380140,5.0586,197.66,197.61,12.98799236]
[1739594380443,5.0587,197.65,197.61,12.98799236]
[1739594381746,5.0587,197.65,197.61,7.92829236]
[1739594390051,0.0346952,197.67,197.61,7.92829236]
[1739594390252,5.0585,197.66,197.61,7.92829236]
[1739594394758,5.0585,197.66,197.61,12.98799236]
[1739594396772,0.0346952,197.67,197.61,12.98799236]
[1739594396970,0.0346952,197.67,197.63,7.92829236]
[1739594400861,5.0928952,197.67,197.63,7.92829236]
[1739594401661,0.0346952,197.67,197.63,7.92829236]
[1739594402366,0.0346952,197.67,197.64,5.0589]
[1739594402660,0.0346952,197.67,197.65,7.92829236]
[1739594402861,4.5699,197.74,197.65,7.92829236]
[1739594403065,5.0569,197.72,197.68,7.92829236]
[1739594403263,4.5699,197.74,197.68,7.92829236]
[1739594403463,0.03819375,197.71,197.68,7.92829236]
[1739594405977,5.09549375,197.71,197.66,7.92829236]
[1739594406467,5.0576,197.69,197.66,7.92829236]
[1739594408973,0.03819375,197.71,197.66,7.92829236]
[1739594409170,5.0574,197.7,197.66,7.92829236]
[1739594409667,0.03819375,197.71,197.66,7.92829236]
[1739594409872,0.03819375,197.71,197.7,7.92829236]
[1739594410272,44.05699918,197.75,197.7,7.92829236]
[1739594410474,0.03314686,197.72,197.7,7.92829236]
[1739594414976,0.03314686,197.72,197.68,7.92829236]
[1739594415167,5.0569,197.72,197.68,7.92829236]
[1739594415366,0.03383614,197.72,197.68,7.92829236]
[1739594415577,0.03383614,197.72,197.66,7.92829236]
[1739594415774,5.0575,197.7,197.66,7.92829236]
[1739594417674,0.03383614,197.72,197.66,7.92829236]
[1739594417874,5.0571,197.71,197.66,7.92829236]
[1739594421168,0.03383614,197.72,197.68,7.92829236]
[1739594421373,45.69029918,197.75,197.68,7.92829236]
[1739594421574,0.03877403,197.72,197.68,7.92829236]
[1739594425280,0.03877403,197.72,197.66,7.92829236]
[1739594425479,7.92829236,197.72,197.64,7.92829236]
[1739594425682,0.03529121,197.71,197.64,7.92829236]
[1739594426981,5.0576,197.69,197.64,7.92829236]
[1739594427182,0.03529121,197.71,197.64,7.92829236]
[1739594427977,5.0576,197.69,197.64,7.92829236]
[1739594428377,0.03529121,197.71,197.64,7.92829236]
[1739594428577,0.03529121,197.71,197.66,7.92829236]
[1739594429083,5.0574,197.7,197.66,7.92829236]
[1739594430583,5.09239121,197.71,197.66,7.92829236]
[1739594431185,0.03529121,197.71,197.66,7.92829236]
[1739594432180,5.0577,197.69,197.66,7.92829236]
[1739594432381,0.03529121,197.71,197.66,7.92829236]
[1739594434086,0.03529121,197.71,197.68,7.92829236]
[1739594434285,7.92829236,197.76,197.68,7.92829236]
[1739594434482,0.03458087,197.71,197.68,7.92829236]
[1739594435585,5.09168087,197.71,197.68,7.92829236]
[1739594435785,5.09168087,197.71,197.66,12.98659236]
[1739594436088,5.09168087,197.71,197.66,7.92829236]
[1739594436284,0.03458087,197.71,197.66,7.92829236]
[1739594436491,5.0577,197.69,197.66,7.92829236]
[1739594436787,0.03458087,197.71,197.66,7.92829236]
[1739594438095,5.0579,197.68,197.66,7.92829236]
[1739594438288,0.03458087,197.71,197.64,7.92829236]
[1739594438488,7.92829236,197.72,197.64,7.92829236]
[1739594438788,0.03599733,197.69,197.64,7.92829236]
[1739594440091,5.0584,197.67,197.64,7.92829236]
[1739594440393,0.03599733,197.69,197.64,7.92829236]
[1739594441191,0.03599733,197.69,197.62,7.92829236]
[1739594442087,5.0586,197.65,197.62,7.92829236]
[1739594442394,0.03599733,197.69,197.62,7.92829236]
[1739594445297,5.0592,197.63,197.62,7.92829236]
[1739594445696,4.8541,197.69,197.6,7.92829236]
[1739594445697,0.03752821,197.64,197.6,7.92829236]
[1739594446500,5.0595,197.62,197.6,7.92829236]
[1739594449000,0.03752821,197.64,197.6,7.92829236]
[1739594449201,5.09662821,197.64,197.6,7.92829236]
[1739594449699,5.0593,197.63,197.6,7.92829236]
[1739594451499,5.0597,197.61,197.6,7.92829236]
[1739594453002,0.03752821,197.64,197.58,7.92829236]
[1739594453201,5.06,197.6,197.58,7.92829236]
[1739594455811,5.0597,197.62,197.58,7.92829236]
[1739594456004,5.0597,197.62,197.6,7.92829236]
[1739594456211,0.03499597,197.63,197.6,7.92829236]
[1739594456701,5.09419597,197.63,197.6,7.92829236]
[1739594459111,5.0596,197.62,197.6,7.92829236]
[1739594462510,0.03499597,197.63,197.6,7.92829236]
[1739594462711,5.0597,197.61,197.6,7.92829236]
[1739594463406,5.0599,197.6,197.58,7.92829236]
[1739594463712,0.03499597,197.63,197.58,7.92829236]
[1739594465013,5.0602,197.59,197.58,7.92829236]
[1739594469618,0.03499597,197.63,197.56,7.92829236]
[1739594469818,7.92829236,197.64,197.56,7.92829236]
[1739594470021,0.03619689,197.61,197.56,7.92829236]
[1739594470318,5.0604,197.58,197.56,7.92829236]
[1739594470514,0.03619689,197.61,197.56,7.92829236]
[1739594470915,5.0599,197.6,197.58,7.92829236]
[1739594471419,0.03619689,197.61,197.58,7.92829236]
[1739594472219,0.03619689,197.61,197.6,7.92829236]
[1739594478725,0.03619689,197.61,197.58,7.92829236]
[1739594482530,0.03619689,197.61,197.6,7.92829236]
[1739594489228,0.03619689,197.61,197.58,7.92829236]
[1739594490034,5.09589689,197.61,197.58,7.92829236]
[1739594490230,0.03619689,197.61,197.58,7.92829236]
[1739594490438,0.03619689,197.61,197.56,7.92829236]
[1739594491138,5.0604,197.58,197.56,7.92829236]
[1739594492239,0.03619689,197.61,197.56,7.92829236]
[1739594494338,5.0604,197.59,197.56,7.92829236]
[1739594494940,0.03619689,197.61,197.56,7.92829236]
[1739594496635,0.03619689,197.61,197.54,7.92829236]
[1739594496839,5.0607,197.57,197.54,7.92829236]
[1739594497343,0.03619689,197.61,197.54,7.92829236]
[1739594498339,5.0607,197.57,197.54,7.92829236]
[1739594498537,0.03619689,197.61,197.54,7.92829236]
[1739594499244,5.0602,197.59,197.54,7.92829236]
[1739594500043,5.0599,197.6,197.56,7.92829236]
[1739594502445,5.0603,197.59,197.56,7.92829236]
[1739594503345,5.0605,197.58,197.56,7.92829236]
[1739594505348,5.0607,197.57,197.56,7.92829236]
[1739594506349,0.03619689,197.61,197.56,7.92829236]
[1739594506550,5.0604,197.59,197.56,7.92829236]
[1739594507956,5.0607,197.57,197.56,7.92829236]
[1739594508747,0.03619689,197.61,197.56,7.92829236]
[1739594509144,0.03619689,197.61,197.58,7.92829236]
[1739594510453,0.03619689,197.61,197.56,7.92829236]
[1739594510644,5.0604,197.59,197.56,7.92829236]
[1739594511853,0.03619689,197.61,197.56,7.92829236]
[1739594511854,5.0599,197.6,197.56,7.92829236]
[1739594512055,0.03619689,197.61,197.58,7.92829236]
[1739594512249,5.09589689,197.61,197.58,7.92829236]
[1739594512444,0.03619689,197.61,197.54,7.92829236]
[1739594512851,4.74199689,197.61,197.54,7.92829236]
[1739594513655,5.0605,197.58,197.54,7.92829236]
[1739594514257,5.0607,197.57,197.54,7.92829236]
[1739594515155,5.0605,197.58,197.54,7.92829236]
[1739594515454,7.92829236,197.58,197.5,8.12949236]
[1739594515852,5.0615,197.54,197.5,8.12949236]
[1739594518057,5.0622,197.51,197.5,0.2012]
[1739594518247,5.0622,197.51,197.5,0.16689669]
[1739594518655,7.92829236,197.54,197.5,0.16689669]
[1739594519354,7.96238476,197.56,197.5,0.16689669]
[1739594520053,0.0340924,197.56,197.5,13.15758905]
[1739594520656,0.0340924,197.56,197.51,5.0622]
[1739594520956,0.0340924,197.56,197.5,8.09518905]
[1739594522258,0.0340924,197.56,197.52,5.062]
[1739594524558,0.0340924,197.56,197.5,8.09518905]
[1739594524756,0.0340924,197.56,197.5,13.15748905]
[1739594524961,0.0340924,197.56,197.5,8.09518905]
[1739594525464,0.0340924,197.56,197.52,5.062]
[1739594525958,0.0340924,197.56,197.5,7.92829236]
[1739594526262,5.0949924,197.56,197.51,5.0622]
[1739594527964,5.0612,197.55,197.5,7.92829236]
[1739594528664,5.0612,197.55,197.5,12.99069236]
[1739594529565,7.96238476,197.56,197.48,7.92829236]
[1739594529766,25.16415808,197.65,197.4,0.17771]
[1739594529767,7.92829236,197.54,197.46,7.92829236]
[1739594529960,7.96525722,197.54,197.46,7.92829236]
[1739594530264,5.0623,197.51,197.46,12.99179236]
[1739594530667,7.96525722,197.54,197.46,12.99179236]
[1739594530863,7.96525722,197.54,197.47,5.0632]
[1739594532065,5.0617,197.53,197.47,5.0632]
[1739594532559,7.96525722,197.54,197.46,12.99179236]
[1739594532760,12.99029236,197.52,197.44,7.92829236]
[1739594533160,0.03537976,197.5,197.44,7.92829236]
[1739594533565,0.03537976,197.5,197.45,5.0635]
[1739594533765,0.03537976,197.5,197.44,7.92829236]
[1739594534369,0.03537976,197.5,197.46,5.0635]
[1739594535768,0.03537976,197.5,197.47,5.0632]
[1739594536270,0.03537976,197.5,197.48,5.0629]
[1739594536460,0.03537976,197.5,197.48,7.92829236]
[1739594537266,0.03537976,197.5,197.49,5.0627]
[1739594540569,0.03537976,197.5,197.48,7.92829236]
[1739594540774,0.03537976,197.5,197.46,7.92829236]
[1739594544577,0.03537976,197.5,197.46,12.99159236]
[1739594545973,0.03537976,197.5,197.46,7.92829236]
[1739594546875,0.03537976,197.5,197.49,5.0627]
[1739594549484,0.03537976,197.5,197.48,12.99129236]
[1739594551173,0.03537976,197.5,197.48,7.92829236]
[1739594551981,0.03537976,197.5,197.46,7.92829236]
[1739594552881,5.09807976,197.5,197.46,7.92829236]
[1739594553578,0.03537976,197.5,197.46,7.92829236]
[1739594557388,0.03537976,197.5,197.45,5.0637]
[1739594557687,0.03537976,197.5,197.46,5.0635]
[1739594560090,0.03537976,197.5,197.46,4.2635]
[1739594561389,5.09797976,197.5,197.45,5.0637]
[1739594561989,13.02627212,197.5,197.45,5.0637]
[1739594562284,13.02627212,197.5,197.43,5.0641]
[1739594562285,7.96367212,197.5,197.43,5.0641]
[1739594562484,7.92829236,197.48,197.43,5.0641]
[1739594562686,7.92829236,197.48,197.4,8.10600236]
[1739594562886,5.0635,197.47,197.42,5.0645]
[1739594563086,0.03360868,197.46,197.42,5.0645]
[1739594563589,5.09710868,197.46,197.41,5.0646]
[1739594564587,13.02540104,197.46,197.41,5.0646]
[1739594565087,5.0638,197.45,197.4,5.065]
[1739594565292,7.96190104,197.46,197.4,5.065]
[1739594567290,13.02540104,197.46,197.41,5.0648]
[1739594570292,0.03360868,197.46,197.45,5.0638]
[1739594570497,7.92829236,197.5,197.45,5.0638]
[1739594570794,0.03266839,197.47,197.45,5.0638]
[1739594571494,0.03266839,197.47,197.43,7.92829236]
[1739594571693,0.03266839,197.47,197.46,5.0635]
[1739594573296,0.03266839,197.47,197.43,7.92829236]
[1739594574104,0.03266839,197.47,197.46,5.0635]
[1739594576805,0.03266839,197.47,197.45,5.0637]
[1739594578302,0.03266839,197.47,197.44,5.064]
[1739594580509,0.03266839,197.47,197.43,7.92829236]
[1739594580804,0.03266839,197.47,197.43,12.99249236]
[1739594581106,0.03266839,197.47,197.44,5.0638]
[1739594585006,0.03266839,197.47,197.45,5.0638]
[1739594595909,0.03266839,197.47,197.46,5.0635]
[1739594596914,0.03266839,197.47,197.45,7.92829236]
[1739594599612,0.03266839,197.47,197.45,12.99199236]
[1739594601014,0.03266839,197.47,197.46,5.0635]
[1739594607726,0.03266839,197.47,197.43,7.92829236]
[1739594608019,7.92829236,197.52,197.43,7.92829236]
[1739594608226,0.03870415,197.47,197.43,7.92829236]
[1739594608720,0.03870415,197.47,197.43,12.99239236]
[1739594608927,0.03870415,197.47,197.43,7.92829236]
[1739594610129,0.03870415,197.47,197.46,5.0635]
[1739594610326,5.0619,197.53,197.45,7.92829236]
[1739594610524,0.03411939,197.48,197.45,7.92829236]
[1739594610927,0.03411939,197.48,197.46,5.0635]
[1739594611527,0.03411939,197.48,197.47,5.0633]
[1739594611728,0.03411939,197.48,197.45,7.92829236]
[1739594613035,0.03411939,197.48,197.46,5.0634]
[1739594613229,0.03411939,197.48,197.42,7.92829236]
[1739594613531,7.92829236,197.5,197.39,7.92829236]
[1739594613736,5.0635,197.46,197.4,5.0648]
[1739594614262,7.92829236,197.44,197.35,12.99439236]
[1739594614426,7.92829236,197.44,197.35,7.92829236]
[1739594614628,5.09931831,197.41,197.35,7.92829236]
[1739594614828,0.03451831,197.41,197.35,7.92829236]
[1739594616132,5.0651,197.4,197.35,7.92829236]
[1739594616531,0.03451831,197.41,197.35,7.92829236]
[1739594616732,7.92829236,197.4,197.33,7.92829236]
[1739594617335,5.0654,197.39,197.33,7.92829236]
[1739594617932,5.0654,197.39,197.33,12.99509236]
[1739594618332,7.92829236,197.4,197.33,12.99509236]
[1739594619334,12.99339236,197.4,197.34,5.0665]
[1739594619634,7.92829236,197.4,197.34,5.0665]
[1739594621235,7.92829236,197.4,197.33,12.99509236]
[1739594621733,12.99339236,197.4,197.33,12.99509236]
[1739594622034,12.99339236,197.4,197.34,5.0665]
[1739594622235,0.03451831,197.41,197.33,7.92829236]
[1739594622428,0.03451831,197.41,197.35,5.0663]
[1739594623637,0.03451831,197.41,197.35,7.92829236]
[1739594623938,0.03451831,197.41,197.37,5.0658]
[1739594626137,0.03451831,197.41,197.35,7.92829236]
[1739594626434,0.03451831,197.41,197.38,5.0655]
[1739594626836,0.03451831,197.41,197.37,5.0658]
[1739594628237,5.09931831,197.41,197.36,5.066]
[1739594629835,5.09931831,197.41,197.37,5.0658]
[1739594630036,0.03451831,197.41,197.37,5.0658]
[1739594630837,5.09931831,197.41,197.36,5.0661]
[1739594631138,0.03451831,197.41,197.35,7.92829236]
[1739594631338,0.03451831,197.41,197.33,7.92829236]
[1739594631539,7.92829236,197.42,197.33,7.92829236]
[1739594631738,0.03898144,197.39,197.33,7.92829236]
[1739594632640,5.10448144,197.39,197.33,7.92829236]
[1739594632840,0.03898144,197.39,197.33,7.92829236]
[1739594633938,0.03898144,197.39,197.34,5.0665]
[1739594635438,5.10438144,197.39,197.34,5.0665]
[1739594636940,5.10438144,197.39,197.33,12.99509236]
[1739594637742,5.10438144,197.39,197.33,7.92829236]
[1739594637941,0.03898144,197.39,197.33,7.92829236]
[1739594638642,0.03898144,197.39,197.35,5.0663]
[1739594638839,0.03898144,197.39,197.33,7.92829236]
[1739594639042,5.10438144,197.39,197.34,5.0666]
[1739594639239,0.03898144,197.39,197.34,5.0666]
[1739594640545,0.03898144,197.39,197.33,7.92829236]
[1739594640741,0.03898144,197.39,197.35,5.0661]
[1739594641142,5.10448144,197.39,197.33,12.99489236]
[1739594641551,5.10448144,197.39,197.33,7.92829236]
[1739594643048,5.10448144,197.39,197.34,5.0665]
[1739594645254,0.03898144,197.39,197.33,7.92829236]
[1739594645457,0.03898144,197.39,197.35,5.0663]
[1739594646054,0.03898144,197.39,197.34,5.0666]
[1739594647052,5.0656,197.38,197.33,12.99509236]
[1739594647255,0.03898144,197.39,197.31,7.92829236]
[1739594647557,5.0659,197.37,197.31,12.99539236]
[1739594648855,5.0659,197.37,197.32,5.0671]
[1739594649565,0.03898144,197.39,197.31,7.92829236]
[1739594649766,5.0661,197.36,197.31,12.99559236]
[1739594649961,0.03898144,197.39,197.31,7.92829236]
[1739594650163,7.92829236,197.38,197.31,7.92829236]
[1739594651061,5.0661,197.36,197.31,7.92829236]
[1739594651673,5.0663,197.35,197.29,7.92829236]
[1739594651860,7.92829236,197.36,197.29,7.92829236]
[1739594652166,0.03441302,197.34,197.29,7.92829236]
[1739594653069,5.10101302,197.34,197.29,7.92829236]
[1739594653263,5.10101302,197.34,197.27,8.13548236]
[1739594653566,0.03441302,197.34,197.27,8.13548236]
[1739594653767,0.03441302,197.34,197.28,5.0681]
[1739594653958,0.03441302,197.34,197.27,8.13548236]
[1739594655168,5.10101302,197.34,197.27,13.20378236]
[1739594655368,0.03441302,197.34,197.27,13.20378236]
[1739594655765,0.03441302,197.34,197.28,5.0681]
[1739594656067,0.03441302,197.34,197.27,8.13548236]
[1739594657067,0.03441302,197.34,197.28,5.068]
[1739594658468,0.03441302,197.34,197.29,5.0678]
[1739594658967,0.03441302,197.34,197.27,8.13548236]
[1739594659161,0.03441302,197.34,197.28,5.0681]
[1739594660168,5.10101302,197.34,197.27,8.13548236]
[1739594660466,5.10101302,197.34,197.27,13.20378236]
[1739594661069,5.10101302,197.34,197.28,5.0681]
[1739594661866,0.03441302,197.34,197.28,5.0681]
[1739594662370,0.03441302,197.34,197.27,7.92829236]
[1739594662566,0.03441302,197.34,197.29,7.92829236]
[1739594664765,0.03441302,197.34,197.31,5.0671]
[1739594666471,0.03441302,197.34,197.29,7.92829236]
[1739594666768,0.03441302,197.34,197.32,5.0671]
[1739594668072,0.03441302,197.34,197.33,5.0668]
[1739594668767,0.03441302,197.34,197.33,12.99509236]
[1739594670875,5.0648,197.41,197.33,7.92829236]
[1739594671078,5.0648,197.41,197.35,7.92829236]
[1739594671374,5.0648,197.41,197.35,12.99459236]
[1739594671965,9.56379236,197.46,197.37,7.92829236]
[1739594672165,0.03258544,197.4,197.37,7.92829236]
[1739594672871,0.03258544,197.4,197.39,5.0653]
[1739594674076,0.03258544,197.4,197.39,12.99359236]
[1739594676680,0.03258544,197.4,197.39,7.92829236]
[1739594686087,0.03258544,197.4,197.38,5.0656]
[1739594690392,0.03258544,197.4,197.39,5.0653]
[1739594690793,0.03258544,197.4,197.37,7.92829236]
[1739594691491,0.03258544,197.4,197.39,7.92829236]
[1739594692193,0.03258544,197.4,197.39,12.99359236]
[1739594698400,5.0633,197.47,197.41,5.0647]
[1739594698693,5.0633,197.47,197.41,12.99299236]
[1739594698898,7.92829236,197.48,197.41,12.99299236]
[1739594699093,1.624,197.5,197.41,12.99299236]
[1739594699294,7.92829236,197.48,197.41,7.92829236]
[1739594699493,5.0639,197.45,197.41,7.92829236]
[1739594699798,0.03728848,197.46,197.43,0.03743139]
[1739594700498,5.10078848,197.46,197.43,0.03743139]
[1739594700703,0.03728848,197.46,197.43,0.03743139]
[1739594704000,0.03728848,197.46,197.44,5.064]
[1739594704200,0.03728848,197.46,197.43,7.96572375]
[1739594705204,0.03728848,197.46,197.43,13.02972375]
[1739594707302,0.03728848,197.46,197.43,7.96572375]
[1739594707600,0.03728848,197.46,197.44,5.064]
[1739594709599,0.03728848,197.46,197.43,7.96572375]
[1739594710303,0.03728848,197.46,197.44,5.0638]
[1739594710700,0.03728848,197.46,197.43,7.96572375]
[1739594710906,0.03728848,197.46,197.45,7.92829236]
[1739594712011,0.03728848,197.46,197.45,12.99209236]
[1739594713706,8.848e-05,197.46,197.45,12.99209236]
[1739594713907,1.6235,197.55,197.49,5.0625]
[1739594714101,1.6235,197.55,197.49,12.99079236]
[1739594714809,1.6235,197.55,197.5,5.0625]
[1739594715010,0.03584741,197.54,197.5,0.03247075]
[1739594715210,0.03584741,197.54,197.51,7.92829236]
[1739594715910,0.03584741,197.54,197.53,7.92829236]
[1739594716407,0.03584741,197.54,197.53,12.98999236]
[1739594717612,0.03584741,197.54,197.53,7.92829236]
[1739594719306,5.0594,197.62,197.53,7.92829236]
[1739594719602,5.0594,197.62,197.5,0.03247075]
[1739594719603,11.17789236,197.66,197.57,7.92829236]
[1739594719805,11.17789236,197.66,197.59,7.92829236]
[1739594720209,6.6702,197.63,197.59,7.92829236]
[1739594720406,6.70405112,197.63,197.59,7.96338637]
[1739594720615,144.78052175,197.63,197.59,7.96338637]
[1739594722116,139.72132175,197.63,197.59,7.96338637]
[1739594722313,139.72132175,197.63,197.61,7.92829236]
[1739594723617,0.03385112,197.63,197.61,7.92829236]
[1739594725819,0.03385112,197.63,197.61,12.98789236]
[1739594726015,0.03385112,197.63,197.61,7.92829236]
[1739594731324,0.03385112,197.63,197.59,7.96338637]
[1739594733315,0.03385112,197.63,197.59,0.03509401]
[1739594734426,5.09305112,197.63,197.59,0.03509401]
[1739594735435,0.03385112,197.63,197.59,7.96338637]
[1739594737029,0.03385112,197.63,197.59,13.02348637]
[1739594737532,0.03385112,197.63,197.59,7.96338637]
[1739594738723,5.09305112,197.63,197.59,7.96338637]
[1739594740527,0.03385112,197.63,197.59,7.96338637]
[1739594742430,0.03385112,197.63,197.59,13.02348637]
[1739594743328,0.03385112,197.63,197.61,7.92829236]
[1739594744335,0.03385112,197.63,197.61,12.98769236]
[1739594744537,0.03385112,197.63,197.61,7.92829236]
[1739594745131,0.03385112,197.63,197.62,5.0594]
[1739594745436,1.6228,197.68,197.61,7.92829236]
[1739594745636,11.06429236,197.74,197.66,7.92829236]
[1739594745832,6.5977,197.73,197.66,7.92829236]
[1739594746030,1.5409,197.73,197.66,7.92829236]
[1739594746734,0.03642896,197.71,197.68,0.03679646]
[1739594746933,0.03642896,197.71,197.68,7.96508882]
[1739594749133,0.03642896,197.71,197.68,0.03679646]
[1739594751336,5.0574,197.7,197.68,0.03679646]
[1739594753241,0.03642896,197.71,197.68,0.03679646]
[1739594753740,0.03642896,197.71,197.68,7.96508882]
[1739594754937,0.03642896,197.71,197.68,13.02288882]
[1739594757047,0.03642896,197.71,197.68,7.96508882]
[1739594765851,0.03642896,197.71,197.7,7.92829236]
[1739594769451,5.09352896,197.71,197.68,0.03679646]
[1739594769751,5.09352896,197.71,197.68,7.96508882]
[1739594771949,5.0575,197.7,197.68,7.96508882]
[1739594772149,0.03642896,197.71,197.68,0.03679646]
[1739594772550,5.0576,197.69,197.68,0.03679646]
[1739594773546,5.0574,197.7,197.68,0.03679646]
[1739594774454,5.09352896,197.71,197.68,0.03679646]
[1739594776657,5.0574,197.7,197.68,0.03679646]
[1739594776848,0.03642896,197.71,197.68,0.03679646]
[1739594777553,5.058,197.68,197.62,7.92829236]
[1739594777754,7.92829236,197.7,197.62,7.92829236]
[1739594778655,5.0584,197.66,197.62,7.92829236]
[1739594778857,5.0584,197.66,197.64,0.03546736]
[1739594779157,0.03806372,197.68,197.64,0.03546736]
[1739594779364,5.0586,197.65,197.64,0.03546736]
[1739594779553,0.03806372,197.68,197.64,0.03546736]
[1739594780661,0.03806372,197.68,197.64,7.96375972]
[1739594780861,0.03806372,197.68,197.66,7.92829236]
[1739594788663,0.03806372,197.68,197.67,5.0581]
[1739594791061,5.056,197.76,197.7,5.0573]
[1739594791267,5.056,197.76,197.73,7.92829236]
[1739594791568,21.01602761,197.8,197.73,7.92829236]
[1739594791764,5.0555,197.78,197.73,7.92829236]
[1739594792171,0.03205205,197.77,197.74,0.03759358]
[1739594793468,0.03205205,197.77,197.75,7.92829236]
[1739594793664,0.03205205,197.77,197.75,12.98439236]
[1739594795668,0.03205205,197.77,197.75,7.92829236]
[1739594796470,0.03205205,197.77,197.75,12.98429236]
[1739594797865,0.03205205,197.77,197.75,7.92829236]
[1739594800576,0.03205205,197.77,197.75,12.98429236]
[1739594800873,0.03205205,197.77,197.75,7.92829236]
[1739594801274,0.03205205,197.77,197.75,12.98439236]
[1739594802175,0.03205205,197.77,197.76,5.0558]
[1739594803165,0.03205205,197.77,197.75,12.98439236]
[1739594803774,0.03205205,197.77,197.75,7.92829236]
[1739594809078,0.03205205,197.77,197.75,12.98439236]
[1739594809277,0.03205205,197.77,197.75,7.92829236]
[1739594812575,0.03205205,197.77,197.74,0.03759358]
[1739594813080,5.08775205,197.77,197.74,0.03759358]
[1739594814481,0.03205205,197.77,197.74,0.03759358]
[1739594814683,5.0559,197.76,197.74,0.03759358]
[1739594815181,5.0561,197.75,197.74,0.03759358]
[1739594819285,5.0558,197.76,197.74,0.03759358]
[1739594820282,0.03205205,197.77,197.74,0.03759358]
[1739594820481,5.0561,197.75,197.74,0.03759358]
[1739594821589,5.0558,197.76,197.74,0.03759358]
[1739594821989,0.03205205,197.77,197.75,7.92829236]
[1739594823689,5.0558,197.76,197.75,7.92829236]
[1739594823883,5.0558,197.76,197.74,0.03759358]
[1739594824595,5.0561,197.75,197.74,0.03759358]
[1739594832504,0.03205205,197.77,197.69,7.92829236]
[1739594832709,7.92829236,197.76,197.69,7.92829236]
[1739594833208,0.03205205,197.77,197.69,7.92829236]
[1739594833604,5.0568,197.73,197.71,0.03216091]
[1739594834008,0.03205205,197.77,197.71,0.03216091]
[1739594834209,7.92829236,197.76,197.71,0.03216091]
[1739594834408,5.0569,197.72,197.71,0.03216091]
[1739594835707,1.5231,197.75,197.71,0.03216091]
[1739594835911,5.0565,197.74,197.71,7.96045327]
[1739594838011,1.5231,197.75,197.71,7.96045327]
[1739594839705,1.5231,197.75,197.71,0.03216091]
[1739594840113,5.0569,197.72,197.71,0.03216091]
[1739594845814,5.0565,197.74,197.71,0.03216091]
[1739594846010,5.0565,197.74,197.71,7.96045327]
[1739594847817,0.03205205,197.77,197.71,7.96045327]
[1739594848019,5.0561,197.75,197.71,7.96045327]
[1739594849319,5.0565,197.74,197.71,7.96045327]
[1739594851518,5.0561,197.75,197.71,7.96045327]
[1739594852414,5.08785205,197.77,197.73,7.92829236]
[1739594854122,5.08785205,197.77,197.73,12.98489236]
[1739594855524,0.03205205,197.77,197.73,7.92829236]
[1739594855721,5.0559,197.76,197.73,7.92829236]
[1739594856423,5.0561,197.75,197.73,7.92829236]
[1739594857924,5.0561,197.75,197.71,7.96045327]
[1739594858126,5.0566,197.73,197.71,7.96045327]